bitfinex/quotes_SOLUSD_20241102
["timestamp","ask_amount","ask_price","bid_price","bid_amount"]
[1730573901044,33.24216118,163.93,163.92,6.36508578]
[1730573901539,33.24216118,163.93,163.92,5.86508578]
[1730573903519,44.72282236,163.93,163.92,5.86508578]
[1730573903726,79.1648059,163.93,163.92,5.86508578]
[1730573904737,79.1648059,163.93,163.82,20.0]
[1730573904940,11.48066118,163.85,163.82,20.0]
[1730573905128,11.48066118,163.86,163.82,20.0]
[1730573905439,11.48066118,163.84,163.81,6.36946504]
[1730573905644,6.2009,163.91,163.81,17.85012622]
[1730573905645,11.48066118,163.86,163.81,17.85012622]
[1730573905815,11.48066118,163.87,163.81,17.85012622]
[1730573906842,11.48066118,163.87,163.82,35.25754518]
[1730573907037,11.48066118,163.88,163.83,11.48066118]
[1730573907238,11.48066118,163.89,163.83,11.48066118]
[1730573909460,11.48066118,163.9,163.85,11.48066118]
[1730573909637,11.48066118,163.9,163.84,11.48066118]
[1730573912261,11.48066118,163.9,163.82,23.776884]
[1730573912262,11.48066118,163.9,163.85,11.48066118]
[1730573914162,11.48066118,163.89,163.84,11.48066118]
[1730573918534,11.48066118,163.88,163.84,43.776884]
[1730573919159,11.48066118,163.89,163.84,43.776884]
[1730573919937,11.48066118,163.89,163.84,55.25754518]
[1730573920339,11.48066118,163.87,163.82,17.84923924]
[1730573920536,11.48066118,163.85,163.82,6.36857806]
[1730573922054,11.48066118,163.86,163.82,6.36857806]
[1730573925671,11.48066118,163.85,163.82,6.36857806]
[1730573926771,11.48066118,163.89,163.84,11.48066118]
[1730573927255,11.48066118,163.88,163.83,35.25754518]
[1730573927458,11.48066118,163.88,163.83,41.62633795]
[1730573932174,11.48066118,163.89,163.84,11.48066118]
[1730573933756,11.48066118,163.86,163.83,6.36879277]
[1730573934177,11.48066118,163.85,163.83,6.36879277]
[1730573934566,11.48066118,163.86,163.83,6.36879277]
[1730573936668,11.48066118,163.85,163.83,6.36879277]
[1730573940561,11.48066118,163.86,163.83,6.36879277]
[1730573941674,11.48066118,163.87,163.83,6.36879277]
[1730573944070,11.48066118,163.89,163.84,11.48066118]
[1730573944276,11.48066118,163.9,163.84,11.48066118]
[1730573944477,11.48066118,163.89,163.84,11.48066118]
[1730573947390,11.48066118,163.88,163.83,17.84953164]
[1730573952195,11.48066118,163.89,163.83,17.84953164]
[1730573952581,11.48066118,163.89,163.84,11.48066118]
[1730573953888,11.48066118,163.88,163.83,17.84953164]
[1730573954388,11.48066118,163.87,163.83,6.36887046]
[1730573961707,11.48066118,163.88,163.83,17.84953164]
[1730573962090,11.48066118,163.88,163.83,6.36887046]
[1730573963678,11.48066118,163.87,163.83,6.36887046]
[1730573964291,11.48066118,163.88,163.83,6.36887046]
[1730573964999,11.48066118,163.87,163.83,6.36887046]
[1730573965404,11.48066118,163.85,163.83,6.36887046]
[1730573967297,4.56859006,163.84,163.83,6.36887046]
[1730573968415,4.56835659,163.84,163.83,6.36887046]
[1730573969198,11.48066118,163.87,163.83,6.36887046]
[1730573969400,4.56795603,163.86,163.83,6.36887046]
[1730573969600,4.56795603,163.85,163.83,6.36887046]
[1730573969803,11.48066118,163.87,163.83,6.36887046]
[1730573969992,4.5679133,163.86,163.83,6.36887046]
[1730573970199,11.48066118,163.87,163.83,6.36887046]
[1730573971005,11.48066118,163.88,163.83,17.84953164]
[1730573972409,11.48066118,163.89,163.83,17.84953164]
[1730573974112,11.48066118,163.9,163.85,11.48066118]
[1730573975108,11.48066118,163.91,163.86,11.48066118]
[1730573975817,11.48066118,163.9,163.85,11.48066118]
[1730573978006,11.48066118,163.91,163.86,11.48066118]
[1730573982004,11.48066118,163.92,163.87,11.48066118]
[1730573984609,11.48066118,163.92,163.84,6.3686443]
[1730573984610,11.48066118,163.93,163.88,11.48066118]
[1730573984816,11.48066118,163.94,163.88,11.48066118]
[1730573985293,11.48066118,163.93,163.88,11.48066118]
[1730573985621,11.48066118,163.93,163.87,31.48066118]
[1730573986318,11.48066118,163.93,163.88,11.48066118]
[1730573988895,11.48066118,163.94,163.88,11.48066118]
[1730573996726,11.48066118,163.94,163.87,6.36739388]
[1730573996727,11.48066118,163.94,163.89,11.48066118]
[1730573996927,11.48066118,163.95,163.9,11.48066118]
[1730573997229,11.48066118,163.95,163.89,11.48066118]
[1730574001424,11.48066118,163.94,163.89,11.48066118]
[1730574001806,11.48066118,163.94,163.88,11.48066118]
[1730574002008,11.48066118,163.94,163.89,11.48066118]
[1730574003326,11.48066118,163.92,163.87,17.84805506]
[1730574003525,11.48066118,163.91,163.87,6.36739388]
[1730574004336,11.48066118,163.92,163.87,17.84805506]
[1730574004717,22.5732,163.96,163.88,11.48066118]
[1730574004718,11.48066118,163.94,163.88,11.48066118]
[1730574007343,11.48066118,163.93,163.88,11.48066118]
[1730574007629,11.48066118,163.94,163.89,11.48066118]
[1730574007839,11.48066118,163.95,163.89,11.48066118]
[1730574008226,27.95456118,163.96,163.9,11.48066118]
[1730574008921,11.48066118,163.95,163.9,11.48066118]
[1730574012053,11.48066118,163.95,163.89,11.48066118]
[1730574020037,11.48066118,163.94,163.89,11.48066118]
[1730574020238,11.48066118,163.94,163.89,20.0]
[1730574020436,11.48066118,163.92,163.88,6.36673087]
[1730574021934,11.48066118,163.93,163.88,17.84739205]
[1730574028747,11.48066118,163.94,163.89,11.48066118]
[1730574035467,11.48066118,163.95,163.89,11.48066118]
[1730574039268,11.48066118,163.94,163.89,11.48066118]
[1730574043270,11.48066118,163.94,163.9,11.48066118]
[1730574043474,11.48066118,163.95,163.9,11.48066118]
[1730574045374,11.48066118,163.95,163.89,11.48066118]
[1730574045583,11.48066118,163.94,163.89,11.48066118]
[1730574047078,11.48066118,163.95,163.89,11.48066118]
[1730574047260,11.48066118,163.95,163.9,11.48066118]
[1730574049482,16.4739,163.96,163.91,11.48066118]
[1730574049665,11.48066118,163.98,163.93,11.48066118]
[1730574051481,11.48066118,163.97,163.92,11.48066118]
[1730574054682,11.48066118,164.0,163.96,11.48066118]
[1730574054881,11.48066118,164.01,163.96,11.48066118]
[1730574055670,11.48066118,164.01,163.95,11.48066118]
[1730574055985,11.48066118,163.99,163.94,11.48066118]
[1730574056177,11.48066118,163.99,163.93,31.48066118]
[1730574056665,11.48066118,163.99,163.94,11.48066118]
[1730574057868,11.48066118,164.0,163.94,11.48066118]
[1730574060895,11.48066118,163.99,163.94,11.48066118]
[1730574061183,11.48066118,163.99,163.93,11.48066118]
[1730574062681,11.48066118,163.98,163.92,11.48066118]
[1730574062988,11.48066118,163.97,163.92,11.48066118]
[1730574065093,11.48066118,163.98,163.92,11.48066118]
[1730574067787,11.48066118,163.97,163.91,37.83632188]
[1730574068389,11.48066118,163.96,163.91,6.3556607]
[1730574068687,11.48066118,163.92,163.91,6.3556607]
[1730574069091,11.48066118,163.92,163.84,11.48066118]
[1730574069279,11.48066118,163.89,163.87,6.36837642]
[1730574069669,11.48066118,163.89,163.84,11.48066118]
[1730574069976,11.48066118,163.89,163.87,6.3685298]
[1730574070192,11.48066118,163.89,163.85,20.0]
[1730574070396,11.48066118,163.89,163.85,26.36862999]
[1730574070689,11.48066118,163.89,163.85,6.36862999]
[1730574072903,11.48066118,163.9,163.85,17.84929117]
[1730574074813,11.48066118,163.9,163.85,6.36862999]
[1730574075701,11.48066118,163.89,163.85,6.36862999]
[1730574078794,11.48066118,163.88,163.85,6.36862999]
[1730574080510,11.48066118,163.87,163.85,6.36862999]
[1730574080809,11.48066118,163.87,163.83,7.71045352]
[1730574085305,11.48066118,163.86,163.83,7.71045352]
[1730574088022,11.48066118,163.86,163.82,6.35624966]
[1730574090529,11.48066118,163.85,163.82,6.35624966]
[1730574090823,64.22264472,163.92,163.82,6.35624966]
[1730574090824,11.48066118,163.83,163.82,6.35624966]
[1730574091024,11.48066118,163.83,163.78,12.5415895]
[1730574091196,11.48066118,163.83,163.8,6.36778542]
[1730574092207,11.48066118,163.81,163.8,6.36778542]
[1730574092530,11.48066118,163.81,163.73,25.07982123]
[1730574092531,11.48066118,163.81,163.78,6.3699925]
[1730574092706,11.48066118,163.82,163.78,6.3699925]
[1730574094610,11.48066118,163.83,163.78,6.3699925]
[1730574095228,11.48066118,163.82,163.78,6.3699925]
[1730574095616,11.48066118,163.84,163.79,11.48066118]
[1730574096824,11.48066118,163.83,163.78,17.85065368]
[1730574104418,11.48066118,163.85,163.79,11.48066118]
[1730574104615,11.48066118,163.86,163.81,11.48066118]
[1730574104939,11.48066118,163.86,163.78,6.3699925]
[1730574104940,11.48066118,163.86,163.8,11.48066118]
[1730574105815,11.48066118,163.86,163.81,11.48066118]
[1730574109637,11.48066118,163.88,163.83,11.48066118]
[1730574114329,11.48066118,163.88,163.79,6.36954373]
[1730574114330,11.48066118,163.9,163.85,11.48066118]
[1730574115428,26.86686118,163.91,163.85,11.48066118]
[1730574117257,11.48066118,163.9,163.85,11.48066118]
[1730574122342,11.48066118,163.89,163.84,11.48066118]
[1730574123140,11.48066118,163.88,163.83,11.48066118]
[1730574123452,11.48066118,163.88,163.83,31.48066118]
[1730574123658,11.48066118,163.89,163.84,11.48066118]
[1730574125716,11.48066118,163.9,163.84,11.48066118]
[1730574125913,26.86686118,163.91,163.86,11.48066118]
[1730574127217,11.48066118,163.9,163.84,11.48066118]
[1730574127833,11.48066118,163.88,163.83,31.48066118]
[1730574128149,11.48066118,163.87,163.83,20.0]
[1730574128637,11.48066118,163.88,163.83,31.48066118]
[1730574128934,11.48066118,163.89,163.83,31.48066118]
[1730574129522,11.48066118,163.9,163.84,11.48066118]
[1730574129734,11.48066118,163.9,163.85,11.48066118]
[1730574131040,26.86686118,163.91,163.85,11.48066118]
[1730574133135,26.86686118,163.91,163.86,11.48066118]
[1730574133339,26.86686118,163.91,163.85,11.48066118]
[1730574135537,11.48066118,163.9,163.85,11.48066118]
[1730574135736,11.48066118,163.89,163.84,35.25754518]
[1730574139046,11.48066118,163.9,163.85,11.48066118]
[1730574152766,11.48066118,163.92,163.86,31.48066118]
[1730574153068,11.48066118,163.94,163.89,11.48066118]
[1730574153274,27.15686118,163.95,163.9,11.48066118]
[1730574153567,6.4846,163.96,163.91,11.48066118]
[1730574153568,11.48066118,163.96,163.91,11.48066118]
[1730574154876,11.48066118,163.95,163.9,11.48066118]
[1730574156067,11.48066118,163.95,163.89,11.48066118]
[1730574160452,11.48066118,163.95,163.9,11.48066118]
[1730574161044,11.48066118,163.95,163.89,11.48066118]
[1730574161465,11.48066118,163.92,163.87,11.48066118]
[1730574161772,11.48066118,163.91,163.87,20.0]
[1730574161953,11.48066118,163.91,163.86,17.84747462]
[1730574162572,6.3362,163.95,163.86,17.84747462]
[1730574162573,11.48066118,163.92,163.86,17.84747462]
[1730574163672,11.48066118,163.92,163.87,20.0]
[1730574166075,11.48066118,163.91,163.86,17.84747462]
[1730574166281,11.48066118,163.9,163.86,6.36681344]
[1730574167673,11.48066118,163.91,163.86,6.36681344]
[1730574167975,11.48066118,163.91,163.86,17.84747462]
[1730574170079,11.48066118,163.91,163.86,6.36681344]
[1730574170968,11.48066118,163.9,163.86,6.36681344]
[1730574171368,11.48066118,163.91,163.86,6.36681344]
[1730574173784,11.48066118,163.91,163.86,17.84747462]
[1730574174474,11.48066118,163.92,163.87,11.48066118]
[1730574175578,11.48066118,163.91,163.86,17.84747462]
[1730574179477,11.48066118,163.92,163.87,11.48066118]
[1730574181192,11.48066118,163.92,163.86,17.84747462]
[1730574185772,11.48066118,163.91,163.86,6.36681344]
[1730574186089,11.48066118,163.9,163.86,6.36681344]
[1730574186673,22.2781,163.93,163.86,6.36681344]
[1730574186878,11.48066118,163.87,163.86,6.36681344]
[1730574187192,11.48066118,163.87,163.81,12.54125757]
[1730574187366,11.48066118,163.86,163.83,6.36407581]
[1730574187563,11.48066118,163.87,163.83,6.36407581]
[1730574188389,4.5635441,163.86,163.83,6.36407581]
[1730574189077,11.48066118,163.87,163.83,6.36407581]
[1730574189274,4.56345485,163.86,163.83,6.36407581]
[1730574189592,11.48066118,163.87,163.83,6.36407581]
[1730574189889,4.56345806,163.86,163.83,6.36407581]
[1730574190091,11.48066118,163.87,163.83,6.36407581]
[1730574190390,4.56333759,163.86,163.84,11.48066118]
[1730574190573,11.48066118,163.89,163.84,11.48066118]
[1730574190777,9.1256345,163.88,163.84,11.48066118]
[1730574190970,9.1256345,163.87,163.84,11.48066118]
[1730574191172,4.5632249,163.86,163.84,11.48066118]
[1730574191470,11.48066118,163.89,163.84,11.48066118]
[1730574191681,4.56313713,163.88,163.84,11.48066118]
[1730574191863,4.56307361,163.87,163.84,11.48066118]
[1730574192279,11.48066118,163.89,163.84,11.48066118]
[1730574192591,4.56300736,163.88,163.84,11.48066118]
[1730574193090,16.04366854,163.88,163.83,17.84473699]
[1730574193777,4.56300736,163.87,163.83,17.84473699]
[1730574194101,16.04365981,163.86,163.83,6.36407581]
[1730574194273,11.48066118,163.87,163.83,6.36407581]
[1730574194472,4.56292971,163.86,163.83,6.36407581]
[1730574194804,11.48066118,163.87,163.83,6.36407581]
[1730574194977,4.56292452,163.86,163.83,6.36407581]
[1730574195292,11.48066118,163.87,163.83,6.36407581]
[1730574195489,4.56269837,163.86,163.83,6.36407581]
[1730574195790,11.48066118,163.87,163.83,6.36407581]
[1730574195990,4.56257102,163.86,163.83,6.36407581]
[1730574196299,11.48066118,163.88,163.83,6.36407581]
[1730574196487,4.56238569,163.87,163.83,6.36407581]
[1730574196687,4.56238432,163.86,163.83,6.36407581]
[1730574196877,11.48066118,163.88,163.83,6.36407581]
[1730574197197,4.56238432,163.87,163.83,6.36407581]
[1730574197372,4.56238432,163.86,163.83,6.36407581]
[1730574197574,11.48066118,163.89,163.84,11.48066118]
[1730574197788,4.56218686,163.88,163.85,11.48066118]
[1730574198094,11.48066118,163.9,163.85,11.48066118]
[1730574198294,4.56196828,163.89,163.85,11.48066118]
[1730574198488,4.56196828,163.88,163.85,11.48066118]
[1730574198690,11.48066118,163.9,163.85,11.48066118]
[1730574199000,4.56187106,163.89,163.85,11.48066118]
[1730574199288,4.56187106,163.88,163.85,11.48066118]
[1730574199507,11.48066118,163.9,163.85,11.48066118]
[1730574199677,4.5617922,163.89,163.85,11.48066118]
[1730574199996,4.5617922,163.88,163.85,11.48066118]
[1730574200197,11.48066118,163.9,163.85,11.48066118]
[1730574200495,4.56184209,163.89,163.85,11.48066118]
[1730574200679,4.56184209,163.88,163.85,11.48066118]
[1730574200877,11.48066118,163.9,163.85,11.48066118]
[1730574201175,4.56187655,163.89,163.85,11.48066118]
[1730574201492,4.56187655,163.88,163.85,11.48066118]
[1730574201687,11.48066118,163.9,163.85,11.48066118]
[1730574201891,4.56181094,163.89,163.85,11.48066118]
[1730574202091,11.48066118,163.9,163.85,11.48066118]
[1730574202391,4.56192496,163.89,163.86,31.48066118]
[1730574202591,11.48066118,163.91,163.86,31.48066118]
[1730574202785,4.56182458,163.9,163.86,31.48066118]
[1730574203092,4.56182458,163.89,163.86,31.48066118]
[1730574203290,11.48066118,163.91,163.86,31.48066118]
[1730574203595,4.56190348,163.9,163.86,31.48066118]
[1730574203896,4.56190348,163.89,163.86,31.48066118]
[1730574204086,11.48066118,163.92,163.87,11.48066118]
[1730574204286,16.1777,163.93,163.87,11.48066118]
[1730574204287,4.56191552,163.91,163.88,11.48066118]
[1730574204492,4.56191552,163.9,163.88,11.48066118]
[1730574204792,11.48066118,163.93,163.88,11.48066118]
[1730574204994,4.5616207,163.92,163.88,11.48066118]
[1730574205198,4.5616207,163.91,163.88,11.48066118]
[1730574205379,4.5616207,163.9,163.88,11.48066118]
[1730574205699,11.48066118,163.94,163.88,11.48066118]
[1730574205871,4.56150557,163.93,163.91,11.48066118]
[1730574206073,15.9841,163.99,163.87,23.776884]
[1730574206074,11.48066118,163.97,163.92,31.48066118]
[1730574206295,4.56095273,163.96,163.92,31.48066118]
[1730574206495,4.56095273,163.95,163.92,31.48066118]
[1730574206682,4.56095273,163.94,163.92,31.48066118]
[1730574206874,4.56095273,163.93,163.92,31.48066118]
[1730574207103,11.48066118,163.97,163.92,31.48066118]
[1730574207290,4.55902898,163.96,163.92,31.48066118]
[1730574207492,4.55889796,163.95,163.93,11.48066118]
[1730574207698,27.46476118,163.99,163.94,20.0]
[1730574207880,4.55879198,163.98,163.94,20.0]
[1730574208084,4.55879198,163.97,163.94,31.48066118]
[1730574208282,4.55879198,163.96,163.95,11.48066118]
[1730574208485,11.48066118,164.0,163.95,11.48066118]
[1730574208799,4.55696463,163.99,163.95,11.48066118]
[1730574209000,4.55696463,163.98,163.95,11.48066118]
[1730574209207,11.48066118,164.05,163.97,11.48066118]
[1730574209385,4.55481408,164.04,164.02,11.48066118]
[1730574209581,4.55481408,164.03,164.01,11.48066118]
[1730574209794,4.55481408,164.02,164.01,11.48066118]
[1730574211109,11.48066118,164.07,164.01,11.48066118]
[1730574211487,4.54704902,164.06,164.01,11.48066118]
[1730574211689,4.54704902,164.05,164.01,11.48066118]
[1730574211893,4.54704902,164.04,164.01,11.48066118]
[1730574212100,11.48066118,164.07,164.01,11.48066118]
[1730574212285,4.5442814,164.06,164.01,11.48066118]
[1730574212488,4.5442814,164.05,164.01,11.48066118]
[1730574212786,11.48066118,164.07,164.02,11.48066118]
[1730574212986,4.54405512,164.06,164.02,11.48066118]
[1730574213205,4.54405512,164.05,164.02,11.48066118]
[1730574213407,11.48066118,164.08,164.03,11.48066118]
[1730574213586,4.54115965,164.07,164.03,11.48066118]
[1730574213904,4.54115965,164.06,164.03,11.48066118]
[1730574214110,11.48066118,164.08,164.03,11.48066118]
[1730574214291,4.53851782,164.07,164.03,11.48066118]
[1730574214494,11.48066118,164.08,164.03,11.48066118]
[1730574214692,4.5382317,164.07,164.03,11.48066118]
[1730574215005,11.48066118,164.08,164.03,11.48066118]
[1730574215198,4.53607042,164.07,164.03,11.48066118]
[1730574215405,27.46476118,164.09,164.03,11.48066118]
[1730574215702,16.01644397,164.08,163.98,43.776884]
[1730574215921,11.48066118,164.06,164.0,11.48066118]
[1730574216092,11.48066118,164.06,164.01,43.776884]
[1730574216493,11.48066118,164.06,164.01,55.25754518]
[1730574217501,11.48066118,164.06,164.01,43.776884]
[1730574217809,11.48066118,164.06,164.0,11.48066118]
[1730574218105,11.48066118,164.05,164.0,11.48066118]
[1730574221718,11.48066118,164.06,164.01,11.48066118]
[1730574222409,11.48066118,164.06,164.0,11.48066118]
[1730574222904,11.48066118,164.05,164.0,11.48066118]
[1730574223715,11.48066118,164.06,164.0,11.48066118]
[1730574224225,11.48066118,164.06,164.01,11.48066118]
[1730574225502,11.48066118,164.07,164.01,11.48066118]
[1730574225918,11.48066118,164.07,164.02,11.48066118]
[1730574227200,11.48066118,164.07,164.01,11.48066118]
[1730574229427,11.48066118,164.06,164.01,11.48066118]
[1730574231532,11.48066118,164.07,164.01,11.48066118]
[1730574231739,11.48066118,164.08,164.02,11.48066118]
[1730574234235,11.48066118,164.08,164.03,11.48066118]
[1730574234431,15.9841,164.09,164.04,11.48066118]
[1730574234612,11.48066118,164.1,164.04,11.48066118]
[1730574237061,11.48066118,164.1,164.05,11.48066118]
[1730574237355,11.48066118,164.1,164.04,11.48066118]
[1730574238945,11.48066118,164.1,164.05,11.48066118]
[1730574239272,11.48066118,164.11,164.05,11.48066118]
[1730574239765,11.48066118,164.12,164.06,11.48066118]
[1730574240137,16.1477,164.13,164.07,11.48066118]
[1730574240138,27.62836118,164.13,164.07,11.48066118]
[1730574240344,11.48066118,164.12,164.07,11.48066118]
[1730574240947,11.48066118,164.12,164.06,11.48066118]
[1730574241146,11.48066118,164.12,164.07,11.48066118]
[1730574241465,16.1477,164.13,164.02,43.776884]
[1730574241466,11.48066118,164.09,164.05,20.0]
[1730574241659,11.48066118,164.1,164.05,20.0]
[1730574242964,11.48066118,164.11,164.05,11.48066118]
[1730574243661,11.48066118,164.1,164.05,11.48066118]
[1730574245658,11.48066118,164.09,164.05,20.0]
[1730574247177,11.48066118,164.09,164.03,31.48066118]
[1730574247387,11.48066118,164.09,164.05,20.0]
[1730574248096,11.48066118,164.09,164.04,20.0]
[1730574248457,11.48066118,164.08,164.04,43.776884]
[1730574248592,11.48066118,164.09,164.04,43.776884]
[1730574249146,11.48066118,164.1,164.04,55.25754518]
[1730574251074,11.48066118,164.09,164.04,43.776884]
[1730574251278,11.48066118,164.12,164.07,11.48066118]
[1730574251469,11.48066118,164.12,164.04,43.776884]
[1730574251470,16.1477,164.13,164.08,11.48066118]
[1730574251820,11.48066118,164.14,164.08,11.48066118]
[1730574252127,11.48066118,164.14,164.09,11.48066118]
[1730574252276,11.48066118,164.15,164.1,11.48066118]
[1730574253355,11.48066118,164.16,164.1,11.48066118]
[1730574254862,11.48066118,164.15,164.1,11.48066118]
[1730574255064,11.48066118,164.16,164.1,11.48066118]
[1730574255958,11.48066118,164.13,164.1,20.0]
[1730574256479,11.48066118,164.14,164.09,20.0]
[1730574261563,11.48066118,164.15,164.1,20.0]
[1730574263449,11.48066118,164.15,164.1,11.48066118]
[1730574264337,4.53398969,164.14,164.1,11.48066118]
[1730574264534,11.48066118,164.15,164.1,11.48066118]
[1730574264735,4.53361134,164.14,164.1,11.48066118]
[1730574264954,11.48066118,164.15,164.1,11.48066118]
[1730574265159,4.53358997,164.14,164.1,11.48066118]
[1730574265337,11.48066118,164.15,164.1,11.48066118]
[1730574265536,4.53574457,164.14,164.1,11.48066118]
[1730574265738,11.48066118,164.17,164.11,11.48066118]
[1730574265938,11.48066118,164.14,164.09,11.48066118]
[1730574266149,11.48066118,164.15,164.1,55.25754518]
[1730574266454,4.53785897,164.14,164.1,55.25754518]
[1730574266655,11.48066118,164.15,164.1,55.25754518]
[1730574266858,4.53730886,164.14,164.1,55.25754518]
[1730574267155,11.48066118,164.15,164.1,55.25754518]
[1730574267454,4.53878861,164.14,164.1,55.25754518]
[1730574267638,11.48066118,164.16,164.11,11.48066118]
[1730574267834,4.53816523,164.15,164.11,11.48066118]
[1730574268034,11.48066118,164.16,164.11,11.48066118]
[1730574268348,4.53948029,164.15,164.11,11.48066118]
[1730574268545,11.48066118,164.17,164.12,20.0]
[1730574268758,4.53878815,164.16,164.12,20.0]
[1730574268940,4.53878815,164.15,164.12,20.0]
[1730574269141,11.48066118,164.17,164.12,20.0]
[1730574269352,4.53986409,164.16,164.12,20.0]
[1730574269554,4.53986409,164.15,164.12,20.0]
[1730574269856,11.48066118,164.17,164.12,20.0]
[1730574270057,4.53922098,164.16,164.12,20.0]
[1730574270271,4.53922098,164.15,164.12,20.0]
[1730574270446,11.48066118,164.17,164.12,20.0]
[1730574270646,4.53885795,164.16,164.12,20.0]
[1730574270854,4.53885795,164.15,164.12,20.0]
[1730574271052,11.48066118,164.17,164.12,20.0]
[1730574271260,4.53885174,164.16,164.12,20.0]
[1730574271465,4.53885174,164.15,164.12,20.0]
[1730574271765,11.48066118,164.17,164.12,20.0]
[1730574271961,4.53840252,164.16,164.12,20.0]
[1730574272148,4.53840252,164.15,164.12,20.0]
[1730574272348,11.48066118,164.17,164.12,20.0]
[1730574272549,4.53794941,164.16,164.12,20.0]
[1730574272746,4.53794941,164.15,164.12,20.0]
[1730574272945,11.48066118,164.17,164.12,20.0]
[1730574273148,4.53795352,164.16,164.12,20.0]
[1730574273345,4.53795352,164.15,164.12,20.0]
[1730574273640,11.48066118,164.17,164.12,20.0]
[1730574273841,4.53742173,164.16,164.12,20.0]
[1730574274041,11.48066118,164.17,164.12,20.0]
[1730574274042,4.53742173,164.15,164.12,20.0]
[1730574274242,11.48066118,164.17,164.12,20.0]
[1730574274545,4.5368675,164.16,164.12,20.0]
[1730574274747,11.48066118,164.16,164.12,20.0]
[1730574275161,4.53692643,164.15,164.12,20.0]
[1730574275463,11.48066118,164.16,164.12,20.0]
[1730574275645,11.48066118,164.15,164.11,20.0]
[1730574275842,11.48066118,164.14,164.11,20.0]
[1730574276541,11.48066118,164.15,164.11,20.0]
[1730574279546,11.48066118,164.16,164.11,31.48066118]
[1730574279749,11.48066118,164.17,164.11,31.48066118]
[1730574279942,4.53605796,164.16,164.11,31.48066118]
[1730574280268,4.53635726,164.15,164.11,31.48066118]
[1730574280442,11.48066118,164.17,164.11,31.48066118]
[1730574280756,4.53620501,164.16,164.12,11.48066118]
[1730574280961,11.48066118,164.17,164.12,11.48066118]
[1730574281163,4.53603612,164.16,164.12,11.48066118]
[1730574281356,11.48066118,164.17,164.13,20.0]
[1730574281555,4.53611977,164.16,164.13,31.48066118]
[1730574281762,11.48066118,164.19,164.13,31.48066118]
[1730574282059,4.53608356,164.18,164.13,31.48066118]
[1730574282261,4.53608356,164.17,164.13,31.48066118]
[1730574282461,4.53608356,164.16,164.14,11.48066118]
[1730574282658,11.48066118,164.2,164.15,20.0]
[1730574282967,4.53620823,164.19,164.15,20.0]
[1730574283167,4.53620823,164.18,164.15,20.0]
[1730574283469,4.53620823,164.17,164.16,31.48066118]
[1730574283656,4.53620823,164.17,164.16,20.0]
[1730574283850,4.53620823,164.2,164.16,20.0]
[1730574284051,4.53620823,164.19,164.16,20.0]
[1730574284669,4.53620823,164.19,164.16,11.48066118]
[1730574284971,11.48066118,164.21,164.16,11.48066118]
[1730574285170,4.53559999,164.2,164.16,11.48066118]
[1730574285469,4.53559999,164.19,164.16,11.48066118]
[1730574285663,11.48066118,164.21,164.16,11.48066118]
[1730574285875,4.5354114,164.2,164.16,11.48066118]
[1730574286168,11.48066118,164.21,164.16,11.48066118]
[1730574286169,4.5354114,164.19,164.16,11.48066118]
[1730574286349,11.48066118,164.21,164.16,11.48066118]
[1730574286552,4.53522771,164.2,164.16,11.48066118]
[1730574286746,4.53522771,164.19,164.16,11.48066118]
[1730574287064,11.48066118,164.2,164.16,20.0]
[1730574287571,4.53557084,164.19,164.16,20.0]
[1730574287772,9.07114649,164.19,164.16,11.48066118]
[1730574288075,11.48066118,164.22,164.17,20.0]
[1730574288367,4.53545153,164.21,164.18,11.48066118]
[1730574288543,4.53545153,164.2,164.17,11.48066118]
[1730574288748,4.53545153,164.19,164.18,20.0]
[1730574288949,4.53545153,164.19,164.17,43.776884]
[1730574289155,11.48066118,164.21,164.17,43.776884]
[1730574289452,16.01613991,164.2,164.17,20.0]
[1730574289656,4.53547873,164.19,164.17,20.0]
[1730574289971,11.48066118,164.2,164.17,20.0]
[1730574290177,4.53501657,164.19,164.17,20.0]
[1730574290381,11.48066118,164.2,164.17,20.0]
[1730574290559,4.53568326,164.19,164.15,20.0]
[1730574290761,11.48066118,164.19,164.15,20.0]
[1730574290961,11.48066118,164.19,164.15,23.776884]
[1730574291156,11.48066118,164.19,164.16,20.0]
[1730574291473,52.01154472,164.24,164.16,20.0]
[1730574291474,11.48066118,164.2,164.16,20.0]
[1730574291661,4.53561219,164.19,164.16,20.0]
[1730574291861,11.48066118,164.2,164.16,20.0]
[1730574292066,4.53559044,164.19,164.16,20.0]
[1730574292268,11.48066118,164.2,164.16,20.0]
[1730574292467,4.53626649,164.19,164.16,20.0]
[1730574292796,11.48066118,164.21,164.16,20.0]
[1730574292972,4.53593911,164.2,164.16,20.0]
[1730574293277,4.53593911,164.19,164.16,20.0]
[1730574293582,11.48066118,164.21,164.16,20.0]
[1730574294366,11.48066118,164.2,164.16,20.0]
[1730574295896,11.48066118,164.19,164.16,20.0]
[1730574296407,11.48066118,164.17,164.12,11.48066118]
[1730574296649,11.48066118,164.17,164.13,43.776884]
[1730574297392,11.48066118,164.18,164.13,43.776884]